fUST/lending_fUST_20250305
["ID","MTS","AMOUNT","RATE_DAILY","PERIOD"]
[355449062,1741175445608,-500.0,0.00039452,9]
[355449064,1741175445618,-500.0,0.00039452,9]
[355449066,1741175445627,-511.37775261,0.00039452,9]
[355449067,1741175445637,-500.0,0.00039452,9]
[355449069,1741175445647,-500.0,0.00039452,9]
[355449071,1741175445657,-500.0,0.00039452,9]
[355449073,1741175445669,-500.0,0.00039452,9]
[355449075,1741175445679,-5347.86,0.00039452,9]
[355449077,1741175445690,-500.0,0.00039452,9]
[355449079,1741175445701,-557.7,0.00039452,9]
[355449081,1741175445716,-500.0,0.00039452,9]
[355449083,1741175445726,-1411.42,0.00039452,9]
[355449085,1741175445736,-554.38135322,0.00039452,9]
[355449086,1741175445745,-500.0,0.00039452,9]
[355449088,1741175445754,-500.0,0.00039452,9]
[355449090,1741175445764,-502.58645799,0.00039452,9]
[355449092,1741175445773,-500.0,0.00039452,9]
[355449094,1741175445783,-500.0,0.00039452,9]
[355449096,1741175445792,-500.0,0.00039452,9]
[355449098,1741175445801,-500.0,0.00039452,9]
[355449100,1741175445810,-1116.89,0.00039452,9]
[355449102,1741175445819,-500.0,0.00039452,9]
[355449104,1741175445829,-626.55,0.00039452,9]
[355449106,1741175445838,-500.0,0.00039452,9]
[355449108,1741175445847,-1619.75,0.00039452,9]
[355449110,1741175445857,-500.0,0.00039452,9]
[355449112,1741175445866,-500.0,0.00039452,9]
[355449114,1741175445875,-929.87,0.00039452,9]
[355449115,1741175445884,-500.0,0.00039452,9]
[355449116,1741175445893,-500.0,0.00039452,9]
[355449117,1741175445902,-5805.48,0.00039452,9]
[355449118,1741175445912,-1879.65,0.00039452,9]
[355449119,1741175445921,-500.0,0.00039452,9]
[355449120,1741175445931,-500.0,0.00039452,9]
[355449121,1741175445941,-513.2,0.00039452,9]
[355449122,1741175445951,-949.76,0.00039452,9]
[355449123,1741175445961,-500.0,0.00039452,9]
[355449124,1741175445971,-1890.66,0.00039452,9]
[355449125,1741175445982,-500.0,0.00039452,9]
[355449126,1741175445992,-5809.78,0.00039452,9]
[355449127,1741175446005,-500.0,0.00039452,9]
[355449128,1741175446014,-1308.52,0.00039452,9]
[355449129,1741175446023,-757.8,0.00039452,9]
[355449130,1741175446032,-238.32762952,0.00039452,9]
[355449131,1741175446042,-4590.74,0.00039452,9]
[355449132,1741175446051,-500.0,0.00039452,9]
[355449133,1741175446061,-500.0,0.00039452,9]
[355449134,1741175446070,-500.0,0.00039452,9]
[355449135,1741175446082,-595.14,0.00039452,9]
[355449136,1741175446092,-500.0,0.00039452,9]
[355449137,1741175446101,-500.0,0.00039452,9]
[355449138,1741175446110,-500.0,0.00039452,9]
[355449139,1741175446120,-835.82,0.00039452,9]
[355449140,1741175446130,-500.0,0.00039452,9]
[355449141,1741175446139,-500.0,0.00039452,9]
[355449142,1741175446149,-500.0,0.00039452,9]
[355449143,1741175446159,-500.0,0.00039452,9]
[355449144,1741175446169,-500.0,0.00039452,9]
[355449145,1741175446178,-500.0,0.00039452,9]
[355449146,1741175446187,-3957.32,0.00039452,9]
[355449147,1741175446197,-500.0,0.00039452,9]
[355449148,1741175446206,-500.0,0.00039452,9]
[355449149,1741175446215,-500.0,0.00039452,9]
[355449150,1741175446224,-500.0,0.00039452,9]
[355449151,1741175446235,-1251.66,0.00039452,9]
[355449152,1741175446245,-500.0,0.00039452,9]
[355449153,1741175446255,-500.0,0.00039452,9]
[355449154,1741175446265,-500.0,0.00039452,9]
[355449155,1741175446275,-1564.29,0.00039452,9]
[355449156,1741175446285,-500.0,0.00039452,9]
[355449157,1741175446295,-500.0,0.00039452,9]
[355449158,1741175446306,-8047.09,0.00039452,9]
[355449159,1741175446317,-909.27,0.00039452,9]
[355449160,1741175446327,-500.0,0.00039452,9]
[355449161,1741175446337,-500.0,0.00039452,9]
[355449162,1741175446346,-500.0,0.00039452,9]
[355449163,1741175446356,-500.0,0.00039452,9]
[355449165,1741175446366,-2247.27,0.00039452,9]
[355449166,1741175446376,-500.0,0.00039452,9]
[355449168,1741175446386,-500.0,0.00039452,9]
[355449170,1741175446395,-500.0,0.00039452,9]
[355449172,1741175446406,-1735.69,0.00039452,9]
[355449174,1741175446416,-500.0,0.00039452,9]
[355449176,1741175446426,-838.37,0.00039452,9]
[355449178,1741175446438,-500.0,0.00039452,9]
[355449180,1741175446448,-500.0,0.00039452,9]
[355449182,1741175446458,-862.54,0.00039452,9]
[355449184,1741175446468,-500.0,0.00039452,9]
[355449186,1741175446478,-500.0,0.00039452,9]
[355449188,1741175446487,-2083.34,0.00039452,5]
[355449190,1741175446498,-500.0,0.00039452,9]
[355449193,1741175446508,-500.0,0.00039452,9]
[355449195,1741175446518,-500.0,0.00039452,9]
[355449197,1741175446527,-500.0,0.00039452,9]
[355449199,1741175446537,-500.0,0.00039452,9]
[355449201,1741175446547,-500.0,0.00039452,9]
[355449203,1741175446557,-2033.02,0.00039452,9]
[355449205,1741175446567,-500.0,0.00039452,9]
[355449207,1741175446576,-510.81052355,0.00039452,9]
[355449209,1741175446585,-728.3,0.00039452,9]
[355449211,1741175446595,-500.0,0.00039452,9]
[355449213,1741175446605,-537.73,0.00039452,9]
[355449215,1741175446615,-500.0,0.00039452,9]
[355449217,1741175446624,-500.0,0.00039452,9]
[355449219,1741175446634,-4172.27,0.00039452,9]
[355449221,1741175446643,-500.0,0.00039452,9]
[355449223,1741175446653,-500.0,0.00039452,9]
[355449225,1741175446665,-500.0,0.00039452,9]
[355449227,1741175446674,-500.0,0.00039452,9]
[355449229,1741175446684,-6905.5,0.00039452,9]
[355449231,1741175446694,-12074.86,0.00039452,5]
[355449233,1741175446705,-6132.26,0.00039452,9]
[355449235,1741175446717,-500.0,0.00039452,9]
[355449238,1741175446728,-500.0,0.00039452,9]
[355449240,1741175446738,-619.35,0.00039452,9]
[355449242,1741175446748,-500.0,0.00039452,9]
[355449244,1741175446758,-598.68,0.00039452,9]
[355449246,1741175446768,-1184.42,0.00039452,9]
[355449248,1741175446777,-663.66,0.00039452,9]
[355449250,1741175446787,-500.0,0.00039452,9]
[355449252,1741175446798,-615.54,0.00039452,9]
[355449254,1741175446808,-500.0,0.00039452,9]
[355449256,1741175446819,-500.0,0.00039452,9]
[355449258,1741175446832,-500.0,0.00039452,9]
[355449260,1741175446843,-500.0,0.00039452,9]
[355449262,1741175446854,-528.17156517,0.00039452,9]
[355449264,1741175446863,-2056.81,0.00039452,9]
[355449266,1741175446873,-1384.25,0.00039452,9]
[355449268,1741175446883,-606.78,0.00039452,9]
[355449270,1741175446892,-500.0,0.00039452,9]
[355449272,1741175446902,-500.0,0.00039452,9]
[355449274,1741175446913,-500.0,0.00039452,9]
[355449276,1741175446923,-500.0,0.00039452,9]
[355449278,1741175446932,-500.0,0.00039452,9]
[355449280,1741175446942,-500.0,0.00039452,9]
[355449282,1741175446952,-500.0,0.00039452,9]
[355449284,1741175446962,-4513.34,0.00039452,9]
[355449286,1741175446972,-500.0,0.00039452,9]
[355449288,1741175446982,-500.0,0.00039452,9]
[355449290,1741175446992,-500.0,0.00039452,9]
[355449292,1741175447004,-500.0,0.00039452,9]
[355449294,1741175447014,-1245.88,0.00039452,9]
[355449296,1741175447024,-500.0,0.00039452,9]
[355449298,1741175447034,-500.0,0.00039452,9]
[355449300,1741175447044,-500.0,0.00039452,9]
[355449302,1741175447055,-500.0,0.00039452,9]
[355449304,1741175447065,-1594.93,0.00039452,9]
[355449306,1741175447077,-500.0,0.00039452,9]
[355449308,1741175447088,-500.0,0.00039452,9]
[355449310,1741175447097,-9676.38,0.00039452,9]
[355449312,1741175447107,-500.0,0.00039452,9]
[355449314,1741175447116,-547.36090854,0.00039452,2]
[355449316,1741175447126,-500.0,0.00039452,9]
[355449319,1741175447135,-527.04,0.00039452,9]
[355449321,1741175447146,-500.0,0.00039452,9]
[355449323,1741175447157,-500.0,0.00039452,9]
[355449325,1741175447170,-500.0,0.00039452,9]
[355449326,1741175447179,-18430.34,0.00039452,9]
[355449329,1741175447189,-500.0,0.00039452,9]
[355449331,1741175447199,-500.0,0.00039452,9]
[355449333,1741175447209,-500.0,0.00039452,9]
[355449335,1741175447219,-2692.84,0.00039452,9]
[355449337,1741175447228,-500.0,0.00039452,9]
[355449339,1741175447238,-1920.83632029,0.00039503,117]
[355449341,1741175447248,-355.92,0.00039716,3]
[355449343,1741175447258,-3805.23803068,0.000398,30]
[355449345,1741175447268,-794.43218691,0.000398,30]
[355449347,1741175447278,-500.0,0.00039876,2]
[355449349,1741175447289,-214.23045878,0.00039899,2]
[355449351,1741175447299,-7128.39729777,0.000399,2]
[355449353,1741175447309,-376.72725113,0.00039999,31]
[355449355,1741175447319,-500.0,0.00039999,31]
[355449357,1741175447328,-500.0,0.00039999,31]
[355449359,1741175447338,-500.0,0.00039999,31]
[355449361,1741175447348,-435.1150269,0.00039999,31]
[355449363,1741175447358,-347.24195237,0.00039999,31]
[355449365,1741175447368,-5000.000001,0.0004,120]
[355449367,1741175447379,-714749.75432558,0.0004,30]
[355449377,1741175449296,-332.38414406,0.00036547,2]
[355449378,1741175449308,-7262.60399065,0.00036547,2]
[355449379,1741175449319,-500.0,0.00038356,9]
[355449380,1741175449328,-500.0,0.00038973,5]
[355449381,1741175449338,-164043.533345,0.0004,30]
[355449426,1741176570111,-295.21544166,0.000192,2]
[355449427,1741176570135,-150.0,0.000266,2]
[355449428,1741176570156,-416.66666667,0.00028,3]
[355449429,1741176570177,-416.66666667,0.00028,3]
[355449473,1741176638161,-500.0,0.0003589,2]
[355449475,1741176638172,-768.33452814,0.000379,108]
[355449477,1741176638183,-823.56194655,0.00038,10]
[355449553,1741176646215,-1676.43805345,0.00038,10]
[355449555,1741176646225,-156.05462533,0.00038256,2]
[355449556,1741176646234,-518.60514096,0.00038356,9]
[355449557,1741176646244,-510.05550102,0.00038356,9]
[355449558,1741176646254,-500.0,0.00038356,9]
[355449560,1741176646263,-521.52,0.00038356,9]
[355449562,1741176646273,-500.0,0.00038356,9]
[355449564,1741176646282,-500.0,0.00038356,9]
[355449565,1741176646291,-500.0,0.00038356,9]
[355449567,1741176646301,-500.0,0.00038356,9]
[355449569,1741176646311,-500.0,0.00038356,9]
[355449570,1741176646321,-500.0,0.00038356,9]
[355449573,1741176646330,-500.0,0.00038356,9]
[355449574,1741176646340,-500.0,0.00038356,9]
[355449575,1741176646350,-500.0,0.00038356,9]
[355449576,1741176646359,-500.0,0.00038356,9]
[355449577,1741176646369,-126.22667924,0.00038356,9]
[355449617,1741177770096,-2055.0,0.00025204,2]
[355449618,1741177770118,-1942.42717366,0.00026,30]
[355449619,1741177770140,-416.66666667,0.00028,3]
[355449620,1741177770161,-416.66666667,0.00028,3]
[355449622,1741177827080,416.66666667,0.00028,3]
[355449623,1741177828752,416.66666667,0.00028,3]
[355449659,1741177832567,-2121.2956425,0.00035821,2]
[355449660,1741177832578,-500.0,0.0003589,2]
[355449662,1741177832588,-416.66666667,0.00035926,2]
[355449664,1741177832598,-568.48310211,0.000379,8]
[355449665,1741177832608,-156.05462532,0.000379,2]
[355449667,1741177832617,-1644.60627106,0.00038,5]
[355449669,1741177832627,-1039.54372924,0.00038,5]
[355449671,1741177832637,-600.0,0.00038,30]
[355449672,1741177832647,-166.18564645,0.00038,30]
[355449673,1741177832656,-10003.59939918,0.00038,14]
[355449674,1741177832667,-26990.67833603,0.00038,7]
[355449675,1741177832677,-791.34343275,0.00038,30]
[355449676,1741177832687,-416.66666667,0.00038,7]
[355449677,1741177832698,-121924.20502572,0.00038256,2]
[355449678,1741177832708,-500.0,0.00038356,9]
[355449679,1741177832718,-500.0,0.00038356,9]
[355449680,1741177832728,-500.0,0.00038356,9]
[355449681,1741177832738,-3806.0,0.00038356,7]
[355449682,1741177832749,-500.0,0.00038356,9]
[355449683,1741177832759,-500.0,0.00038356,9]
[355449684,1741177832772,-500.0,0.00038356,9]
[355449685,1741177832782,-500.0,0.00038356,9]
[355449686,1741177832792,-524.88,0.00038356,9]
[355449687,1741177832801,-500.0,0.00038356,9]
[355449688,1741177832813,-531.92,0.00038356,9]
[355449689,1741177832823,-500.0,0.00038356,9]
[355449690,1741177832832,-500.0,0.00038356,9]
[355449691,1741177832842,-500.0,0.00038356,9]
[355449692,1741177832852,-500.0,0.00038356,9]
[355449693,1741177832864,-507.13304998,0.00038356,9]
[355449694,1741177832873,-521.62611794,0.00038356,9]
[355449695,1741177832883,-500.0,0.00038356,9]
[355449696,1741177832892,-500.0,0.00038356,9]
[355449697,1741177832902,-500.0,0.00038356,9]
[355449698,1741177832911,-500.0,0.00038356,9]
[355449699,1741177832921,-528.07,0.00038356,9]
[355449700,1741177832931,-500.0,0.00038356,9]
[355449701,1741177832941,-500.0,0.00038356,9]
[355449702,1741177832950,-500.0,0.00038356,9]
[355449703,1741177832960,-500.0,0.00038356,9]
[355449704,1741177832969,-500.0,0.00038356,9]
[355449705,1741177832978,-500.0,0.00038356,9]
[355449706,1741177832988,-500.0,0.00038356,9]
[355449707,1741177832998,-500.0,0.00038356,9]
[355449708,1741177833008,-500.0,0.00038356,9]
[355449709,1741177833019,-500.0,0.00038356,9]
[355449710,1741177833029,-520.75,0.00038356,9]
[355449711,1741177833040,-500.0,0.00038356,9]
[355449712,1741177833050,-500.0,0.00038356,9]
[355449713,1741177833060,-500.0,0.00038356,9]
[355449714,1741177833305,-500.0,0.00038356,9]
[355449715,1741177833316,-500.0,0.00038356,9]
[355449716,1741177833326,-532.17716736,0.00038356,9]
[355449717,1741177833337,-500.0,0.00038356,9]
[355449718,1741177833347,-500.0,0.00038356,9]
[355449719,1741177833357,-500.0,0.00038356,9]
[355449720,1741177833367,-500.0,0.00038356,9]
[355449721,1741177833377,-500.0,0.00038356,9]
[355449722,1741177833387,-500.0,0.00038356,9]
[355449723,1741177833397,-500.0,0.00038356,9]
[355449724,1741177833407,-500.0,0.00038356,9]
[355449725,1741177833417,-1822.92,0.00038356,5]
[355449726,1741177833426,-500.0,0.00038356,9]
[355449727,1741177833436,-500.0,0.00038356,9]
[355449728,1741177833445,-500.0,0.00038356,9]
[355449729,1741177833455,-500.0,0.00038356,9]
[355449730,1741177833465,-518.64594646,0.00038356,9]
[355449731,1741177833475,-500.0,0.00038356,9]
[355449732,1741177833485,-500.0,0.00038356,9]
[355449733,1741177833494,-616.37084567,0.00038356,9]
[355449734,1741177833504,-500.0,0.00038356,9]
[355449735,1741177833515,-500.0,0.00038356,9]
[355449736,1741177833524,-500.0,0.00038356,9]
[355449737,1741177833534,-500.0,0.00038356,9]
[355449738,1741177833544,-500.0,0.00038356,9]
[355449739,1741177833553,-500.0,0.00038356,9]
[355449740,1741177833563,-500.0,0.00038356,9]
[355449741,1741177833572,-500.0,0.00038356,9]
[355449742,1741177833582,-530.94,0.00038356,9]
[355449743,1741177833592,-500.0,0.00038356,9]
[355449744,1741177833602,-500.0,0.00038356,9]
[355449745,1741177833612,-500.0,0.00038356,9]
[355449746,1741177833622,-500.0,0.00038356,9]
[355449747,1741177833632,-500.0,0.00038356,9]
[355449748,1741177833642,-260.72647345,0.00038356,9]
[355449749,1741177833652,-500.0,0.00038356,9]
[355449750,1741177833661,-500.0,0.00038356,9]
[355449751,1741177833670,-500.0,0.00038356,9]
[355449752,1741177833680,-500.0,0.00038356,9]
[355449753,1741177833690,-500.0,0.00038356,9]
[355449754,1741177833700,-500.0,0.00038356,9]
[355449755,1741177833709,-500.0,0.00038356,9]
[355449756,1741177833719,-500.0,0.00038356,9]
[355449757,1741177833729,-500.0,0.00038356,9]
[355449758,1741177833739,-500.0,0.00038356,9]
[355449759,1741177833749,-500.0,0.00038356,9]
[355449760,1741177833758,-500.0,0.00038356,9]
[355449761,1741177833770,-500.0,0.00038356,9]
[355449762,1741177833783,-500.0,0.00038356,9]
[355449763,1741177833793,-500.0,0.00038356,9]
[355449764,1741177833803,-815.59,0.00038356,9]
[355449765,1741177833814,-500.0,0.00038356,9]
[355449766,1741177833825,-1000.0,0.00038356,88]
[355449767,1741177833835,-1297.05,0.00038356,9]
[355449768,1741177833845,-500.0,0.00038356,9]
[355449769,1741177833857,-647.32,0.00038356,9]
[355449770,1741177833868,-510.40496813,0.00038356,9]
[355449771,1741177833878,-548.38,0.00038356,9]
[355449772,1741177833887,-500.0,0.00038356,9]
[355449773,1741177833897,-500.0,0.00038356,9]
[355449774,1741177833906,-500.0,0.00038356,9]
[355449775,1741177833916,-500.0,0.00038356,9]
[355449776,1741177833926,-500.0,0.00038356,9]
[355449777,1741177833937,-500.0,0.00038356,9]
[355449778,1741177833947,-556.64,0.00038356,9]
[355449779,1741177833957,-500.0,0.00038356,9]
[355449780,1741177833967,-500.0,0.00038356,9]
[355449781,1741177833978,-500.0,0.00038356,9]
[355449782,1741177833987,-500.0,0.00038356,9]
[355449783,1741177833998,-575.17,0.00038356,9]
[355449784,1741177834008,-500.0,0.00038356,9]
[355449785,1741177834024,-500.0,0.00038356,9]
[355449786,1741177834034,-500.0,0.00038356,9]
[355449787,1741177834045,-500.0,0.00038356,9]
[355449788,1741177834056,-500.0,0.00038356,9]
[355449789,1741177834067,-799.53,0.00038356,9]
[355449790,1741177834078,-987.69,0.00038356,9]
[355449791,1741177834088,-500.0,0.00038356,9]
[355449792,1741177834099,-500.0,0.00038356,9]
[355449793,1741177834109,-500.0,0.00038356,9]
[355449794,1741177834119,-500.0,0.00038356,9]
[355449795,1741177834129,-425.48479524,0.00038356,9]
[355449796,1741177834139,-520.06368687,0.00038356,9]
[355449797,1741177834149,-968.68,0.00038356,9]
[355449798,1741177834159,-500.0,0.00038356,9]
[355449799,1741177834169,-500.0,0.00038356,9]
[355449800,1741177834179,-500.0,0.00038356,9]
[355449801,1741177834189,-500.0,0.00038356,9]
[355449802,1741177834199,-500.0,0.00038356,9]
[355449803,1741177834209,-500.0,0.00038356,9]
[355449804,1741177834219,-500.0,0.00038356,9]
[355449805,1741177834229,-500.0,0.00038356,9]
[355449806,1741177834239,-500.0,0.00038356,9]
[355449807,1741177834247,-500.0,0.00038356,9]
[355449808,1741177834257,-500.0,0.00038356,9]
[355449809,1741177834268,-779.76,0.00038356,9]
[355449810,1741177834278,-500.0,0.00038356,9]
[355449811,1741177834288,-776.09,0.00038356,9]
[355449812,1741177834298,-500.0,0.00038356,9]
[355449813,1741177834308,-500.0,0.00038356,9]
[355449814,1741177834318,-500.0,0.00038356,9]
[355449815,1741177834328,-227.84662228,0.00038356,9]
[355449816,1741177834338,-500.0,0.00038356,9]
[355449817,1741177834347,-500.0,0.00038356,9]
[355449818,1741177834357,-404.84313544,0.00038356,9]
[355450289,1741177843535,-95.15686456,0.00038356,9]
[355450290,1741177843546,-525.79,0.00038356,9]
[355450291,1741177843557,-500.0,0.00038356,9]
[355450292,1741177843568,-456.02307947,0.00038356,9]
[355450293,1741177843580,-506.35,0.00038356,9]
[355450294,1741177843591,-500.0,0.00038356,9]
[355450295,1741177843603,-500.0,0.00038356,9]
[355450296,1741177843616,-500.0,0.00038356,9]
[355450297,1741177843627,-779.1,0.00038356,9]
[355450298,1741177843640,-500.0,0.00038356,9]
[355450299,1741177843652,-500.0,0.00038356,9]
[355450300,1741177843665,-500.0,0.00038356,9]
[355450302,1741177843676,-500.0,0.00038356,9]
[355450305,1741177843688,-500.0,0.00038356,9]
[355450306,1741177843698,-500.0,0.00038356,9]
[355450308,1741177843709,-500.0,0.00038356,9]
[355450310,1741177843719,-500.0,0.00038356,9]
[355450311,1741177843729,-500.0,0.00038356,9]
[355450313,1741177843741,-500.0,0.00038356,9]
[355450314,1741177843752,-1121.42,0.00038356,9]
[355450315,1741177843765,-500.0,0.00038356,9]
[355450317,1741177843781,-500.0,0.00038356,9]
[355450319,1741177843792,-500.0,0.00038356,9]
[355450320,1741177843804,-500.0,0.00038356,9]
[355450321,1741177843816,-500.0,0.00038356,9]
[355450322,1741177843826,-500.0,0.00038356,9]
[355450323,1741177843837,-500.0,0.00038356,9]
[355450324,1741177843848,-500.0,0.00038356,9]
[355450325,1741177843861,-514.18207109,0.00038356,9]
[355450326,1741177843872,-500.0,0.00038356,9]
[355450327,1741177843883,-500.0,0.00038356,9]
[355450328,1741177843894,-500.0,0.00038356,9]
[355450330,1741177843905,-500.0,0.00038356,9]
[355450331,1741177843922,-1319.51,0.00038356,9]
[355450332,1741177843932,-500.0,0.00038356,9]
[355450333,1741177843944,-505.53737969,0.00038356,9]
[355450334,1741177843955,-500.0,0.00038356,9]
[355450335,1741177843966,-500.0,0.00038356,9]
[355450336,1741177843976,-1114.59,0.00038356,9]
[355450337,1741177843988,-500.0,0.00038356,9]
[355450338,1741177843998,-500.0,0.00038356,9]
[355450339,1741177844009,-1140.43,0.00038356,9]
[355450340,1741177844021,-500.0,0.00038356,9]
[355450341,1741177844031,-500.0,0.00038356,9]
[355450342,1741177844042,-500.0,0.00038356,9]
[355450343,1741177844053,-601.20318826,0.00038356,9]
[355450344,1741177844063,-2142.63,0.00038356,9]
[355450345,1741177844074,-500.0,0.00038356,9]
[355450346,1741177844085,-500.0,0.00038356,9]
[355450347,1741177844095,-500.0,0.00038356,9]
[355450348,1741177844106,-500.0,0.00038356,9]
[355450349,1741177844117,-500.0,0.00038356,9]
[355450350,1741177844128,-500.0,0.00038356,9]
[355450351,1741177844138,-1799.71,0.00038356,9]
[355450352,1741177844149,-534.47,0.00038356,9]
[355450353,1741177844160,-500.0,0.00038356,9]
[355450354,1741177844171,-592.25,0.00038356,9]
[355450355,1741177844182,-500.0,0.00038356,9]
[355450356,1741177844193,-500.0,0.00038356,9]
[355450357,1741177844204,-500.0,0.00038356,9]
[355450358,1741177844214,-500.0,0.00038356,9]
[355450359,1741177844224,-500.0,0.00038356,9]
[355450360,1741177844235,-8466.84,0.00038356,9]
[355450361,1741177844246,-500.0,0.00038356,9]
[355450362,1741177844257,-679.8,0.00038356,9]
[355450363,1741177844268,-500.0,0.00038356,9]
[355450364,1741177844279,-2356.24,0.00038356,9]
[355450365,1741177844290,-500.0,0.00038356,9]
[355450366,1741177844301,-500.0,0.00038356,9]
[355450367,1741177844312,-500.0,0.00038356,9]
[355450368,1741177844322,-811.13,0.00038356,9]
[355450369,1741177844333,-500.0,0.00038356,9]
[355450370,1741177844344,-1417.28,0.00038356,9]
[355450371,1741177844355,-531.95,0.00038356,9]
[355450372,1741177844365,-500.0,0.00038356,9]
[355450373,1741177844377,-10734.38,0.00038356,9]
[355450374,1741177844387,-500.0,0.00038356,9]
[355450375,1741177844399,-1644.69,0.00038356,9]
[355450376,1741177844411,-1234.99,0.00038356,9]
[355450377,1741177844422,-500.0,0.00038356,9]
[355450378,1741177844433,-500.0,0.00038356,9]
[355450379,1741177844444,-500.0,0.00038356,9]
[355450380,1741177844455,-500.0,0.00038356,9]
[355450381,1741177844466,-1296.05,0.00038356,9]
[355450382,1741177844477,-350.26568746,0.00038356,9]
[355450383,1741177844488,-500.0,0.00038356,9]
[355450384,1741177844499,-500.0,0.00038356,9]
[355450385,1741177844509,-548.23,0.00038356,9]
[355450386,1741177844522,-853.12,0.00038356,9]
[355450387,1741177844532,-500.0,0.00038356,9]
[355450388,1741177844542,-1961.58,0.00038356,9]
[355450389,1741177844552,-663.07,0.00038356,9]
[355450390,1741177844563,-500.0,0.00038356,9]
[355450391,1741177844574,-500.0,0.00038356,9]
[355450392,1741177844587,-500.0,0.00038356,9]
[355450393,1741177844598,-500.0,0.00038356,9]
[355450394,1741177844608,-731.35,0.00038356,9]
[355450395,1741177844619,-500.0,0.00038356,9]
[355450396,1741177844630,-500.0,0.00038356,9]
[355450397,1741177844640,-500.0,0.00038356,9]
[355450398,1741177844650,-500.0,0.00038356,9]
[355450400,1741177844661,-1095.2,0.00038356,9]
[355450402,1741177844671,-500.0,0.00038356,9]
[355450403,1741177844682,-1144.95,0.00038356,9]
[355450405,1741177844692,-500.0,0.00038356,9]
[355450407,1741177844703,-500.0,0.00038356,9]
[355450408,1741177844714,-500.0,0.00038356,9]
[355450409,1741177844725,-500.0,0.00038356,9]
[355450410,1741177844736,-500.0,0.00038356,9]
[355450411,1741177844747,-500.0,0.00038356,9]
[355450412,1741177844757,-500.0,0.00038356,9]
[355450413,1741177844774,-113849.01,0.00038356,7]
[355450414,1741177844785,-500.0,0.00038356,9]
[355450415,1741177844796,-568.4,0.00038356,9]
[355450416,1741177844807,-500.0,0.00038356,9]
[355450417,1741177844818,-734.65,0.00038356,9]
[355450418,1741177844829,-500.0,0.00038356,9]
[355450419,1741177844841,-500.0,0.00038356,9]
[355450420,1741177844852,-500.0,0.00038356,9]
[355450421,1741177844862,-500.0,0.00038356,9]
[355450422,1741177844873,-500.0,0.00038356,9]
[355450423,1741177844884,-500.0,0.00038356,9]
[355450424,1741177844896,-529.28,0.00038356,9]
[355450425,1741177844906,-578.75346168,0.00038356,9]
[355450426,1741177844917,-500.0,0.00038356,9]
[355450427,1741177844928,-500.0,0.00038356,9]
[355450428,1741177844938,-598.9,0.00038356,9]
[355450429,1741177844948,-4679.38,0.00038356,9]
[355450430,1741177844959,-500.0,0.00038356,9]
[355450431,1741177844970,-795.61,0.00038356,9]
[355450432,1741177844980,-500.0,0.00038356,9]
[355450433,1741177844992,-500.0,0.00038356,9]